bitfinex/quotes_ETHUSD_20250404
["timestamp","ask_amount","ask_price","bid_price","bid_amount"]
[1743738625853,5.468,1791.8,1791.7,5.58129]
[1743738626007,6.01,1792.2,1792.0,5.58021]
[1743738626213,5.469,1792.1,1792.0,5.58021]
[1743738627421,5.469,1792.1,1791.5,5.58191]
[1743738627422,5.58066,1791.9,1791.0,0.7664]
[1743738627622,8.16131967,1791.2,1790.8,6.35027]
[1743738627830,5.469,1791.1,1790.8,0.7664]
[1743738628051,5.469,1791.1,1790.9,5.5835]
[1743738628277,5.469,1791.1,1790.8,6.35031]
[1743738628569,5.469,1791.1,1790.8,6.35024]
[1743738629121,5.469,1791.1,1790.9,5.58362]
[1743738629655,5.469,1791.1,1790.8,0.7664]
[1743738629855,11.05229,1791.1,1790.7,5.58418]
[1743738630042,2.57840967,1791.0,1790.7,5.58418]
[1743738630424,8.16202967,1791.0,1790.6,6.35109]
[1743738630821,13.74571967,1791.0,1790.6,6.35109]
[1743738631030,11.29994582,1791.0,1790.6,6.35109]
[1743738631338,5.58383,1790.9,1790.7,0.2768308]
[1743738631537,5.58383,1790.9,1790.6,6.35106]
[1743738631761,8.72146615,1791.0,1790.7,5.86797273]
[1743738631961,8.72146615,1791.0,1790.7,0.28360273]
[1743738632275,5.58383,1790.9,1790.6,0.7664]
[1743738632474,5.58383,1790.9,1790.8,0.28342594]
[1743738632629,6.23885238,1790.9,1790.7,0.28389742]
[1743738632980,6.23885238,1790.9,1790.6,6.3511]
[1743738633126,6.23885238,1790.9,1790.7,0.28389742]
[1743738633329,0.65502238,1790.9,1790.6,6.3511]
[1743738633664,3.13791615,1791.0,1790.7,5.86815742]
[1743738634161,8.72147615,1791.0,1790.7,0.28389742]
[1743738634331,3.13791615,1791.0,1790.6,5.58456]
[1743738634531,10.20041183,1791.1,1790.9,5.58367]
[1743738634730,10.20041183,1791.1,1790.7,0.28400458]
[1743738634731,5.471,1791.0,1790.8,5.58408]
[1743738635046,5.471,1791.0,1790.9,0.28295452]
[1743738635249,9.42571183,1791.1,1790.9,0.28295452]
[1743738635555,5.472,1791.0,1790.8,5.58396]
[1743738635757,5.472,1791.0,1790.9,5.58378]
[1743738635929,5.472,1791.0,1790.8,5.58395]
[1743738636132,9.01,1791.1,1790.9,5.58378]
[1743738636331,5.472,1791.0,1790.9,5.58378]
[1743738636531,5.472,1791.0,1790.8,5.58395]
[1743738636849,5.472,1791.0,1790.9,5.58378]
[1743738638749,11.482,1791.1,1791.0,5.58347]
[1743738640865,43.561,1791.4,1791.3,5.58253]
[1743738641065,49.033,1791.4,1791.3,5.58253]
[1743738641566,49.033,1791.4,1791.2,11.16543]
[1743738641765,49.033,1791.4,1791.2,5.58268]
[1743738641971,49.033,1791.4,1791.3,5.58253]
[1743738642347,49.033,1791.4,1791.2,5.58268]
[1743738642543,54.5373,1791.4,1791.1,5.58304]
[1743738643071,49.033,1791.4,1791.2,5.58284]
[1743738643269,49.44881435,1791.4,1791.2,11.16557]
[1743738643456,49.44881435,1791.4,1791.2,11.16542]
[1743738643638,43.561,1791.4,1791.3,6.39533]
[1743738643841,6.01,1791.5,1791.4,5.58222]
[1743738644039,11.482,1791.5,1791.4,6.80792658]
[1743738644369,11.482,1791.5,1791.4,7.0868641]
[1743738644968,6.01,1791.5,1791.4,7.0868641]
[1743738646872,6.01,1791.5,1791.4,5.86115752]
[1743738650349,11.482,1791.7,1791.5,5.5819]
[1743738650986,11.482,1791.7,1791.6,5.8590063]
[1743738651186,11.482,1791.7,1791.6,0.2774063]
[1743738651952,11.482,1791.7,1791.6,5.8590063]
[1743738652380,6.01,1791.7,1791.6,5.8590063]
[1743738652573,11.481,1791.7,1791.6,7.08602393]
[1743738654775,11.481,1791.7,1791.6,5.8590063]
[1743738655080,11.481,1791.7,1791.6,0.2774063]
[1743738655865,11.481,1791.7,1791.6,5.8590063]
[1743738656590,11.481,1791.7,1791.6,0.2774063]
[1743738656753,11.481,1791.7,1791.4,11.16444]
[1743738656958,8.16362469,1791.6,1791.5,0.2767529]
[1743738657160,2.58200469,1791.6,1791.3,11.16481]
[1743738657457,2.58200469,1791.6,1791.4,0.27719723]
[1743738658183,8.16362469,1791.6,1791.4,0.27719723]
[1743738658386,0.81636247,1791.5,1791.3,5.5824]
[1743738658587,0.81636247,1791.5,1791.4,0.27719723]
[1743738658792,8.16367469,1791.6,1791.4,0.27719723]
[1743738659657,0.7505,1791.5,1791.4,0.27719723]
[1743738659858,2.58200469,1791.6,1791.4,0.27719723]
[1743738660086,2.58200469,1791.6,1791.4,5.85923723]
[1743738660282,2.58200469,1791.6,1791.4,11.44135723]
[1743738660585,2.58200469,1791.6,1791.4,5.85923723]
[1743738660784,4.32311401,1791.6,1791.4,5.85923723]
[1743738662084,6.01,1791.5,1791.4,0.27719723]
[1743738662890,6.01,1791.5,1791.4,5.85941723]
[1743738663092,6.01,1791.5,1791.4,5.58222]
[1743738663394,6.01,1791.5,1791.4,5.85941723]
[1743738663696,11.48,1791.5,1791.4,6.64111723]
[1743738663893,11.48,1791.5,1791.4,7.78529895]
[1743738664104,6.01,1791.5,1791.4,7.78529895]
[1743738665689,6.01,1791.5,1791.4,7.84111433]
[1743738665867,6.01,1791.5,1791.4,7.78529895]
[1743738667787,6.01,1791.5,1791.4,7.84111434]
[1743738668092,5.47,1791.8,1791.7,5.58129]
[1743738668590,5.47,1791.8,1791.7,5.85685988]
[1743738669667,6.01,1791.9,1791.8,5.58098]
[1743738670062,6.01,1791.9,1791.8,5.8561057]
[1743738670466,6.01,1791.9,1791.8,6.6554057]
[1743738671659,6.7764,1792.5,1792.4,5.57911]
[1743738671900,11.90500877,1792.5,1792.4,5.57911]
[1743738672117,11.90500877,1792.5,1792.4,5.85012643]
[1743738672391,12.66950088,1792.5,1792.4,5.85012643]
[1743738672591,11.479,1792.5,1792.4,5.85012643]
[1743738674303,14.82870469,1792.5,1792.4,0.27101643]
[1743738674600,20.40750469,1792.5,1792.4,0.27101643]
[1743738674892,20.40750469,1792.5,1792.0,5.58024]
[1743738674893,11.92632,1792.4,1792.0,5.58024]
[1743738675094,5.58007,1792.1,1791.5,0.7993]
[1743738675295,14.82770469,1792.0,1791.8,5.58092]
[1743738675494,20.40809469,1792.0,1791.6,5.58148]
[1743738675800,20.40809469,1792.0,1791.7,5.58125]
[1743738675965,25.98874469,1792.0,1791.6,5.58148]
[1743738676173,2.59887447,1791.9,1791.7,0.27380363]
[1743738676495,2.59887447,1791.9,1791.6,11.16296]
[1743738676792,2.59887447,1791.9,1791.7,0.27380363]
[1743738676994,3.02024113,1791.9,1791.6,11.16291]
[1743738677164,9.03024113,1791.9,1791.7,0.27380363]
[1743738677496,9.03024113,1791.9,1791.6,5.58143]
[1743738677669,9.03024113,1791.9,1791.8,0.27335945]
[1743738677866,9.03024113,1791.9,1791.7,5.85502363]
[1743738678195,9.03024113,1791.9,1791.8,5.85433945]
[1743738678497,6.01,1791.9,1791.8,5.85433945]
[1743738681397,6.01,1791.9,1791.8,6.65363945]
[1743738682599,5.468,1792.0,1791.9,5.58066]
[1743738682769,5.468,1792.0,1791.9,5.85429771]
[1743738682966,5.468,1792.0,1791.9,7.07775548]
[1743738683391,5.468,1792.0,1791.9,5.85429771]
[1743738684603,8.05000469,1792.0,1791.9,0.27363771]
[1743738684778,8.05000469,1792.0,1791.7,5.58116]
[1743738684975,13.63040469,1792.0,1791.8,0.27368049]
[1743738685177,13.63040469,1792.0,1791.7,5.58114]
[1743738685387,1.36304047,1791.9,1791.8,0.27400157]
[1743738685902,2.15174047,1791.9,1791.8,0.27400157]
[1743738686287,2.15174047,1791.9,1791.7,5.58119]
[1743738686474,2.15174047,1791.9,1791.7,5.58114]
[1743738686809,5.468,1792.0,1791.8,5.85524917]
[1743738687877,5.468,1792.0,1791.8,5.85508917]
[1743738688379,11.478,1792.0,1791.8,5.85508917]
[1743738688584,0.7887,1791.9,1791.8,0.27426917]
[1743738689222,5.58098,1791.8,1791.4,5.58193]
[1743738689510,6.37032,1791.6,1791.5,0.27557511]
[1743738689809,11.83832,1791.6,1791.3,5.58249]
[1743738690012,11.83832,1791.6,1791.4,0.27601944]
[1743738690578,11.83832,1791.6,1791.1,5.58305]
[1743738690579,11.59191,1791.5,1791.1,5.58305]
[1743738690906,0.7887,1791.3,1791.2,0.27690825]
[1743738691108,6.7987,1791.3,1791.2,0.27690825]
[1743738691411,12.38147,1791.3,1791.2,0.27979956]
[1743738691589,6.7987,1791.3,1791.0,5.58337]
[1743738691911,5.468,1791.2,1791.1,5.86311404]
[1743738693895,6.01,1791.3,1791.2,5.58284]
[1743738694075,11.479,1791.3,1791.2,5.58284]
[1743738694280,11.479,1791.3,1791.2,7.56593868]
[1743738694909,6.7987,1791.7,1791.6,5.5816]
[1743738695213,11.479,1791.7,1791.6,5.85948824]
[1743738696107,11.479,1791.7,1791.6,7.75651406]
[1743738696276,6.01,1791.7,1791.6,7.75651406]
[1743738698586,6.01,1792.1,1792.0,5.58035]
[1743738698816,5.469,1792.1,1792.0,5.85520338]
[1743738699486,49.571,1792.2,1792.1,5.58004]
[1743738699687,55.04,1792.2,1792.1,5.58004]
[1743738699887,55.04,1792.2,1792.1,5.85444934]
[1743738700125,49.03,1792.2,1792.1,5.85444934]
[1743738700491,49.03,1792.2,1792.1,6.99792927]
[1743738700687,5.469,1792.4,1792.3,5.57912]
[1743738701089,5.469,1792.4,1792.3,5.85242732]
[1743738705429,5.469,1792.4,1792.3,5.57912]
[1743738705591,5.469,1792.4,1792.3,5.8498044]
[1743738706505,5.469,1792.4,1792.3,0.2706844]
[1743738706704,5.469,1792.4,1792.3,5.8501044]
[1743738707803,5.469,1792.4,1792.3,6.6833044]
[1743738708816,5.469,1792.4,1792.3,0.2706844]
[1743738709620,5.469,1792.4,1792.3,5.8501044]
[1743738711929,5.469,1792.4,1792.3,0.2706844]
[1743738712342,5.469,1792.4,1792.3,5.8501044]
[1743738714014,5.469,1792.4,1792.3,0.2706844]
[1743738714211,11.21340687,1792.4,1792.3,0.2706844]
[1743738714514,11.21340687,1792.4,1792.3,6.38182]
[1743738714515,5.469,1792.4,1792.3,6.38182]
[1743738714935,6.01,1792.5,1792.4,5.57911]
[1743738715155,2.58025873,1792.7,1792.6,5.57848]
[1743738715156,8.59025873,1792.7,1792.6,5.57848]
[1743738715358,14.46558646,1792.7,1792.6,5.57848]
[1743738715545,11.476,1792.7,1792.6,5.84673593]
[1743738716759,6.01,1792.7,1792.6,5.84673593]
[1743738716946,6.01,1792.7,1792.6,7.79167552]
[1743738717269,3.36085873,1793.0,1792.6,7.79167552]
[1743738717270,6.41979531,1793.2,1793.1,5.57693]
[1743738717565,11.88579531,1793.2,1793.1,0.26464697]
[1743738717733,21.24301531,1793.2,1793.1,0.26464697]
[1743738717915,3.0,1793.1,1792.7,6.3803]
[1743738718127,9.01,1793.1,1792.7,6.3803]
[1743738718326,2.58025873,1793.0,1792.8,5.84364426]
[1743738718571,2.58025873,1793.0,1792.9,5.57755]
[1743738718927,2.58025873,1793.0,1792.9,5.84303062]
[1743738719234,8.15749873,1793.0,1792.9,0.26548062]
[1743738719555,4.2970086,1793.0,1792.8,5.5778]
[1743738719752,2.58025873,1793.0,1792.8,5.57774]
[1743738719925,2.58025873,1793.0,1792.9,0.26513302]
[1743738720349,2.58025873,1793.0,1792.9,5.57755]
[1743738720554,2.58025873,1793.0,1792.9,5.84268302]
[1743738720870,9.01,1793.1,1793.0,5.57724]
[1743738721057,9.01,1793.1,1793.0,5.84192944]
[1743738721576,14.476,1793.1,1793.0,5.84192944]
[1743738722172,6.01,1793.1,1793.0,5.84192944]
[1743738722472,6.01,1793.1,1793.0,7.78627738]
[1743738722674,49.56,1793.5,1793.4,5.576]
[1743738722975,55.025,1793.5,1793.4,5.83856803]
[1743738723384,49.56,1793.5,1793.4,5.83856803]
[1743738723876,49.56,1793.5,1793.4,0.26256803]
[1743738724469,55.025,1793.5,1793.4,0.26256803]
[1743738725375,55.025,1793.5,1793.4,5.83856803]
[1743738726069,55.025,1793.5,1793.4,0.26256803]
[1743738726656,55.025,1793.5,1793.4,5.83856803]
[1743738727144,55.025,1793.5,1793.4,0.26256803]
[1743738727891,55.025,1793.5,1793.4,5.83856803]
[1743738728890,49.56,1793.5,1793.4,6.59336803]
[1743738729773,49.56,1793.5,1793.4,1.01736803]
[1743738729962,49.56,1793.5,1793.4,0.26256803]
[1743738730583,49.56,1793.5,1793.4,5.83856803]
[1743738735848,49.56,1793.5,1793.4,0.26256803]
[1743738736054,67.04673873,1793.5,1793.4,0.26256803]
[1743738736254,6.40515,1793.2,1792.9,5.5775]
[1743738736488,6.40515,1793.2,1792.8,6.33261]
[1743738736489,5.57704,1793.1,1793.0,0.2387837]
[1743738736670,5.57704,1793.1,1792.8,5.57781]
[1743738736870,13.58958487,1793.1,1792.9,0.23922729]
[1743738737056,11.15749873,1793.0,1792.6,6.33316]
[1743738737266,5.57762,1792.9,1792.7,0.24011462]
[1743738737454,6.40602,1792.9,1792.6,5.57836]
[1743738737650,11.04325873,1792.8,1792.7,0.24011462]
[1743738737857,5.57835,1792.7,1792.3,5.57937]
[1743738738074,6.01,1792.6,1792.4,5.82033598]
[1743738738450,6.01,1792.6,1792.4,0.24144598]
[1743738738764,6.01,1792.6,1792.3,11.15863]
[1743738738966,6.01,1792.6,1792.5,0.24100214]
[1743738739296,9.01,1792.6,1792.5,0.24100214]
[1743738739450,9.01,1792.6,1792.3,5.57927]
[1743738739653,14.5885,1792.6,1792.4,0.22175476]
[1743738739995,3.40865873,1792.5,1792.3,5.57931]
[1743738740299,5.463,1792.4,1792.1,11.91468]
[1743738740500,5.463,1792.4,1792.2,5.57955]
[1743738740853,8.463,1792.4,1792.3,5.57942]
[1743738741101,8.463,1792.4,1792.2,5.57955]
[1743738741102,6.01,1792.6,1792.4,5.57882]
[1743738741397,6.01,1793.0,1792.6,5.57848]
[1743738741557,11.473,1793.0,1792.7,5.57788]
[1743738741877,11.473,1793.0,1792.6,5.57838]
[1743738742084,17.05047,1793.0,1792.6,5.57838]
[1743738742279,22.62795,1793.0,1792.6,5.57838]
[1743738742492,8.57762,1792.9,1792.6,5.57833]
[1743738742803,11.15787873,1792.9,1792.5,11.91219]
[1743738743098,5.58025873,1792.9,1792.6,5.57848]
[1743738743254,3.0,1792.9,1792.7,5.57816]
[1743738743870,3.0,1792.9,1792.6,5.57838]
[1743738744295,8.57775,1792.9,1792.5,6.33354]
[1743738744503,8.57775,1792.9,1792.6,5.57845]
[1743738744802,11.14055,1792.9,1792.6,5.57845]
[1743738744958,3.0,1792.9,1792.7,5.57807]
[1743738745354,9.01,1793.0,1792.9,6.33615]
[1743738745681,5.464,1793.1,1793.0,5.57707]
[1743738747902,6.01,1793.3,1793.0,5.57707]
[1743738747903,11.58641,1793.3,1793.0,5.57707]
[1743738748258,6.01,1793.3,1793.0,11.15421]
[1743738748629,6.01,1793.3,1793.1,0.22029861]
[1743738748905,26.85475819,1793.4,1793.1,0.22029861]
[1743738749503,5.57636,1793.3,1793.1,0.22029861]
[1743738750009,21.27859819,1793.4,1793.1,0.22029861]
[1743738750175,21.27859819,1793.4,1793.1,5.79717861]
[1743738750599,26.85481819,1793.4,1793.1,0.22029861]
[1743738750806,5.57636,1793.3,1793.1,0.22029861]
[1743738751595,26.16376254,1793.4,1793.1,0.22029861]
[1743738752027,6.01,1793.4,1793.3,5.57631]
[1743738752192,5.464,1793.4,1793.3,5.57631]
[1743738752519,5.464,1793.4,1793.3,5.79572168]
[1743738752836,55.023,1793.5,1793.4,5.576]
[1743738752987,55.023,1793.5,1793.4,0.21896829]
[1743738753191,55.023,1793.5,1793.4,5.79496829]
[1743738753387,55.023,1793.5,1793.4,0.21896829]
[1743738753808,55.023,1793.5,1793.4,5.79496829]
[1743738754011,55.023,1793.5,1793.4,0.21896829]
[1743738755197,68.23936131,1793.5,1793.2,5.5765]
[1743738755396,63.17893873,1793.5,1793.2,5.5765]
[1743738755596,63.17893873,1793.5,1793.3,0.21941168]
[1743738756419,57.60325873,1793.5,1793.3,0.21941168]
[1743738756638,64.01120873,1793.5,1793.3,0.21941168]
[1743738756810,5.57652,1793.3,1792.9,5.57751]
[1743738757037,9.01443073,1793.3,1792.9,5.57751]
[1743738757243,5.57663,1793.2,1793.0,0.22060916]
[1743738757432,5.463,1793.1,1792.9,5.57751]
[1743738757638,5.463,1793.1,1792.9,5.57742]
[1743738757834,5.463,1793.1,1793.0,0.22060916]
[1743738759771,5.463,1793.1,1793.0,5.79784916]
[1743738760076,5.463,1793.1,1793.0,6.93537508]
[1743738760369,5.463,1793.1,1793.0,7.74157508]
[1743738760931,5.463,1793.4,1793.3,5.57616]
[1743738761172,5.463,1793.4,1793.3,11.15232]
[1743738761555,5.463,1793.4,1793.3,5.57616]
[1743738761729,5.463,1793.4,1793.3,5.79479986]
[1743738763632,6.01,1793.5,1793.4,5.576]
[1743738763831,6.01,1793.5,1793.4,5.79419647]
[1743738764165,5.463,1793.6,1793.5,5.57568]
[1743738764555,5.463,1793.6,1793.5,5.79287454]
[1743738764876,6.01,1793.8,1793.7,5.57506]
[1743738765067,46.16325873,1793.9,1793.8,5.57475]
[1743738765272,54.62625873,1793.9,1793.8,5.79061482]
[1743738765568,52.046,1793.9,1793.8,5.79061482]
[1743738768356,54.62625873,1793.9,1793.8,0.21586482]
[1743738768554,65.80780855,1793.9,1793.8,0.21586482]
[1743738768755,3.7899,1793.8,1793.4,5.57593]
[1743738768957,8.15533873,1793.7,1793.4,5.57588]
[1743738769161,8.15533873,1793.7,1793.5,0.21225976]
[1743738769476,4.3322846,1793.7,1793.5,5.78774976]
[1743738769655,3.0,1793.8,1793.6,5.57518]
[1743738769850,3.0,1793.8,1793.7,5.78643323]
[1743738770051,8.462,1793.8,1793.7,5.78643323]
[1743738770252,14.03675,1793.8,1793.7,0.21137323]
[1743738770476,14.03675,1793.8,1793.5,11.95737]
[1743738770705,8.462,1793.8,1793.6,0.21210878]
[1743738770983,5.58025873,1793.7,1793.6,0.21210878]
[1743738771150,6.36045873,1793.7,1793.6,0.21210878]
[1743738771764,6.36045873,1793.7,1793.5,5.57565]
[1743738771984,6.36045873,1793.7,1793.6,0.21224167]
[1743738773098,6.36045873,1793.7,1793.6,5.78761167]
[1743738773391,3.0,1793.7,1793.6,0.21224167]
[1743738774792,3.0,1793.7,1793.5,5.57552]
[1743738774962,3.0,1793.7,1793.6,0.21224167]
[1743738775162,3.0,1793.7,1793.5,11.15107]
[1743738775365,3.0,1793.7,1793.6,0.21224167]
[1743738776768,13.94618873,1793.7,1793.6,0.21224167]
[1743738776963,5.57543,1793.6,1793.3,5.57618]
[1743738777204,5.57543,1793.6,1793.3,11.15235]
[1743738777504,5.57543,1793.6,1793.4,0.21318145]
[1743738777702,13.94618873,1793.7,1793.4,0.21318145]
[1743738777908,19.52146873,1793.7,1793.4,0.21318145]
[1743738778103,19.52146873,1793.7,1793.3,11.15235]
[1743738778398,13.94618873,1793.7,1793.4,5.57597]
[1743738778599,19.52140873,1793.7,1793.4,5.57597]
[1743738778907,13.94618873,1793.7,1793.5,0.21273811]
[1743738779706,19.52139873,1793.7,1793.5,0.21273811]
[1743738779870,13.94618873,1793.7,1793.4,5.57599]
[1743738780204,13.94618873,1793.7,1793.5,0.21273811]
[1743738780500,13.94618873,1793.7,1793.4,11.15188]
[1743738780803,6.40995873,1793.7,1793.5,0.21273811]
[1743738781508,11.98501873,1793.7,1793.5,0.21273811]
[1743738781702,5.57537,1793.6,1793.2,6.3487]
[1743738782001,11.15101,1793.6,1793.3,0.21428918]
[1743738782416,17.16101,1793.6,1793.3,0.21428918]
[1743738782609,6.01,1793.6,1793.4,5.57589]
[1743738782904,6.01,1793.6,1793.5,5.78908245]
[1743738783111,6.01,1793.6,1793.5,6.9255787]
[1743738783407,6.01,1793.6,1793.5,5.78908245]
[1743738784208,6.01,1793.6,1793.5,0.21340245]
[1743738784381,6.01,1793.6,1793.5,5.78908245]
[1743738786715,6.01,1793.6,1793.5,6.59878245]
[1743738788235,9.01,1793.7,1793.5,6.59878245]
[1743738788599,9.01,1793.7,1793.5,6.38538]
[1743738788791,9.01,1793.7,1793.6,0.21295915]
[1743738789517,9.01,1793.7,1793.4,11.15175]
[1743738789518,14.58506,1793.7,1793.4,11.15175]
[1743738789724,9.01,1793.7,1793.5,0.21340245]
[1743738789923,9.01,1793.7,1793.5,5.78906245]
[1743738790120,9.01,1793.7,1793.5,11.36461245]
[1743738790325,11.59025873,1793.7,1793.5,0.21340245]
[1743738790530,17.16542873,1793.7,1793.5,0.21340245]
[1743738790731,9.01,1793.7,1793.5,5.78887245]
[1743738790928,9.01,1793.7,1793.5,6.15435725]
[1743738791125,6.01,1793.7,1793.6,5.57537]
[1743738791297,6.01,1793.7,1793.6,5.78832915]
[1743738792920,6.01,1793.7,1793.6,0.21295915]
[1743738793118,18.31251873,1793.7,1793.6,0.21295915]
[1743738793437,6.35267,1793.4,1793.0,5.57715]
[1743738793597,13.61670873,1793.3,1793.0,5.57715]
[1743738793794,13.61670873,1793.3,1793.1,0.19663517]
[1743738794447,6.35346,1793.1,1792.8,5.57775]
[1743738794667,5.58025873,1792.9,1792.6,5.57834]
[1743738794870,5.46,1792.8,1792.6,5.57834]
[1743738795223,5.46,1792.8,1792.7,5.57817]
[1743738796265,5.46,1792.8,1792.7,5.77657962]
[1743738798368,5.46,1792.8,1792.7,0.19840962]
[1743738798729,5.46,1792.8,1792.6,5.57832]
[1743738798949,5.46,1792.8,1792.7,0.19840962]
[1743738799156,11.03786,1792.8,1792.7,0.19840962]
[1743738799351,11.03786,1792.8,1792.5,11.15742]
[1743738799352,5.46,1792.8,1792.5,11.15742]
[1743738799558,2.58025873,1792.7,1791.9,0.8301]
[1743738799767,2.58025873,1792.5,1792.2,5.57963]
[1743738799953,5.461,1792.4,1792.2,5.57963]
[1743738800453,5.461,1792.4,1792.2,11.15924]
[1743738800852,3.0,1792.7,1792.5,5.57848]
[1743738801072,8.461,1792.7,1792.6,5.57848]
[1743738801569,8.461,1792.7,1792.5,6.40858]
[1743738801718,8.461,1792.7,1792.5,5.57848]
[1743738801922,10.16612587,1792.7,1792.5,11.15715]
[1743738802229,8.461,1792.7,1792.5,5.57848]
[1743738802730,5.461,1792.7,1792.5,5.57848]
[1743738803265,5.461,1792.7,1792.5,11.15714]
[1743738803569,5.461,1792.7,1792.5,5.57848]
[1743738803726,5.461,1792.7,1792.6,5.57848]
[1743738803927,5.461,1792.7,1792.5,5.57848]
[1743738804243,5.461,1792.7,1792.6,5.57848]
[1743738804427,5.461,1792.7,1792.6,6.33368]
[1743738810172,5.461,1792.7,1792.4,5.57896]
[1743738810366,5.461,1792.7,1792.4,11.15795]
[1743738810570,5.461,1792.7,1792.5,5.57872]
[1743738810771,5.461,1792.7,1792.5,5.57869]
[1743738811282,5.461,1792.7,1792.6,0.18678433]
[1743738812092,5.461,1792.7,1792.6,5.76526433]
[1743738815002,5.461,1792.7,1792.6,0.18678433]
[1743738816163,7.50331587,1792.7,1792.6,0.18678433]
[1743738817506,13.08148587,1792.7,1792.4,11.15802]
[1743738817677,7.50331587,1792.7,1792.5,0.18759791]
[1743738818008,7.50331587,1792.7,1792.5,5.76625791]
[1743738820144,5.461,1792.7,1792.5,5.76625791]
[1743738820341,5.461,1792.7,1792.5,5.57866]
[1743738820546,11.471,1792.7,1792.5,5.57866]
[1743738820931,11.471,1792.7,1792.6,0.18715412]
[1743738821818,17.04917,1792.7,1792.6,0.18715412]
[1743738822022,19.64930687,1792.7,1792.4,11.158]
[1743738822205,14.07113687,1792.7,1792.4,11.158]
[1743738822399,14.07113687,1792.7,1792.5,0.18759791]
[1743738822726,19.64932687,1792.7,1792.5,0.18759791]
[1743738823040,14.07113687,1792.7,1792.5,5.76638791]
[1743738823240,11.471,1792.7,1792.5,5.76638791]
[1743738824038,6.01,1792.7,1792.6,6.40768]
[1743738824350,11.471,1792.7,1792.6,6.59533596]
[1743738825008,11.471,1792.7,1792.6,5.76613596]
[1743738825438,11.471,1792.7,1792.6,0.18765596]
[1743738825626,13.175897,1792.7,1792.6,0.18765596]
[1743738825935,18.754067,1792.7,1792.4,5.57899]
[1743738826107,18.754067,1792.7,1792.5,0.18809974]
[1743738826509,18.754067,1792.7,1792.4,5.57899]
[1743738826740,18.754067,1792.7,1792.5,0.18809974]
[1743738828439,13.175897,1792.7,1792.5,0.18809974]
[1743738828630,13.175897,1792.7,1792.5,5.76685974]
[1743738828833,11.471,1792.7,1792.5,5.76685974]
[1743738829031,11.471,1792.7,1792.5,5.76676974]
[1743738829234,11.471,1792.7,1792.6,5.57848]
[1743738829615,11.471,1792.7,1792.6,5.76613596]
[1743738830613,6.01,1792.7,1792.6,5.76613596]
[1743738830861,11.471,1792.7,1792.6,7.72981656]
[1743738832562,6.01,1792.7,1792.6,6.59533596]
[1743738834340,6.01,1792.7,1792.6,5.76613596]
[1743738834646,6.01,1792.7,1792.6,0.18765596]
[1743738834647,9.36575873,1792.7,1792.6,0.18765596]
[1743738834962,8.57875,1792.6,1792.2,5.5796]
[1743738835260,0.7755,1792.4,1792.3,0.18898746]
[1743738835441,6.2355,1792.4,1792.3,0.18898746]
[1743738835642,6.2355,1792.4,1792.2,5.57972]
[1743738835847,6.2355,1792.4,1792.3,0.18898746]
[1743738836761,5.46,1792.4,1792.3,5.76840746]
[1743738837872,5.46,1792.4,1792.3,0.18898746]
[1743738839565,5.46,1792.4,1792.3,5.76840746]
[1743738840668,5.46,1792.4,1792.3,6.59120746]
[1743738840871,5.46,1792.4,1792.3,7.80828721]
[1743738841056,6.01,1792.5,1792.3,7.80828721]
[1743738841057,6.01,1792.5,1792.4,5.57911]
[1743738841259,6.01,1792.5,1792.3,7.80828721]
[1743738841460,6.01,1792.5,1792.4,0.19052529]
[1743738841758,6.01,1792.5,1792.4,5.57911]
[1743738841948,6.01,1792.5,1792.4,5.76963529]
[1743738842156,8.04125873,1792.7,1792.6,5.57848]
[1743738842482,11.04125873,1792.7,1792.6,5.76811767]
[1743738842780,8.461,1792.7,1792.6,5.76811767]
[1743738842969,8.461,1792.7,1792.6,0.18963767]
[1743738843347,6.01,1792.8,1792.6,0.18963767]
[1743738843576,9.01,1792.8,1792.7,5.57817]
[1743738843876,9.01,1792.8,1792.7,5.76736393]
[1743738844069,6.01,1792.8,1792.7,5.76736393]
[1743738844660,6.01,1792.8,1792.7,6.98421532]
[1743738845062,43.544,1793.1,1793.0,5.57724]
[1743738845275,5.46,1793.2,1793.1,5.57693]
[1743738845677,5.46,1793.2,1793.1,5.76273792]
[1743738850892,11.469,1793.3,1793.2,5.57662]
[1743738851273,11.469,1793.3,1793.2,5.75910535]
[1743738852304,17.80571,1793.3,1793.2,0.18248535]
[1743738852602,14.82562287,1793.3,1793.1,5.57692]
[1743738852771,2.58025873,1793.2,1793.1,11.15371]
[1743738853158,2.58025873,1793.2,1793.1,5.57679]
[1743738853987,11.469,1793.3,1793.2,5.57662]
[1743738854984,14.04925873,1793.3,1793.1,5.57679]
[1743738855156,16.0117976,1793.3,1793.1,5.57679]
[1743738855358,16.0117976,1793.3,1793.1,11.15363]
[1743738855560,16.0117976,1793.3,1793.1,5.57679]
[1743738856084,16.0117976,1793.3,1793.2,5.57662]
[1743738856385,14.04925873,1793.3,1793.2,5.75910535]
[1743738858512,14.04925873,1793.3,1793.2,0.18248535]
[1743738859223,14.04925873,1793.3,1793.1,5.57691]
[1743738859392,14.04925873,1793.3,1793.2,0.18248535]
[1743738859593,14.04925873,1793.3,1793.2,5.57662]
[1743738859790,14.04925873,1793.3,1793.2,5.75910535]
[1743738861188,11.469,1793.3,1793.2,5.75910535]
[1743738862415,11.469,1793.3,1793.2,5.57662]
[1743738862817,5.57733,1793.0,1792.6,6.33685]
[1743738863121,8.81105873,1792.9,1792.7,5.75810663]
[1743738863299,5.457,1792.9,1792.8,5.57786]
[1743738864109,5.457,1792.9,1792.8,5.7273006]
[1743738864315,5.457,1792.9,1792.8,6.93368466]
[1743738868622,5.457,1792.9,1792.8,5.7273006]
[1743738870804,3.0,1793.2,1793.1,5.57693]